Workbook

Sheet total
A1: م | B1: الاسم | C1: الفصل | D1: كود | E1: التخصص | F1: تاريخ اخر فصل | G1: تاريخ اخر اعادة قيد | H1: عدد مرات الفصل | I1: الديانه | J1: حالة القيد
A2: 1 | B2: ابراهيم احمد محمد ابراهيم | C2: 1 | D2: 1 | E2: كهرباء عام
A3: 2 | B3: احمد عبد الفتاح على عبد الفتاح | C3: 1 | D3: 1 | E3: كهرباء عام | J3: دمج
A4: 3 | B4: احمد فتحى عبد المنعم السيد حسن | C4: 1 | D4: 1 | E4: كهرباء عام
A5: 4 | B5: احمد محمد عبد الحكيم حفنى زقزوق | C5: 1 | D5: 1 | E5: كهرباء عام
A6: 5 | B6: احمد وائل غريب احمد عبد العظيم درويش | C6: 1 | D6: 1 | E6: كهرباء عام
A7: 6 | B7: احمد يحيى مسعد الصادق محمد | C7: 1 | D7: 1 | E7: كهرباء عام
A8: 7 | B8: اسلام عبد العزيز كمال محمد مصطفى | C8: 1 | D8: 1 | E8: كهرباء عام
A9: 8 | B9: امجد شريف حافظ عبد المنعم السيسى | C9: 1 | D9: 1 | E9: كهرباء عام
A10: 9 | B10: ايمن بلال سعيد رشاد محمد | C10: 1 | D10: 1 | E10: كهرباء عام
A11: 10 | B11: أمير احمد حسين ابراهيم سليم | C11: 1 | D11: 1 | E11: كهرباء عام
A12: 11 | B12: رافت حسن على احمد حامد | C12: 1 | D12: 1 | E12: كهرباء عام
A13: 12 | B13: زياد محمد عبد اللطيف عبد الله | C13: 1 | D13: 1 | E13: كهرباء عام
A14: 13 | B14: سيف الدين عبد المنعم كامل على مصطفى عثمان | C14: 1 | D14: 1 | E14: كهرباء عام
A15: 14 | B15: سيف الدين محمد السيد محمد | C15: 1 | D15: 1 | E15: كهرباء عام | J15: دمج
A16: 15 | B16: عبد الرحمن ابراهيم محمد محمد صابر | C16: 1 | D16: 1 | E16: كهرباء عام
A17: 16 | B17: عبد الرحمن اسماعيل اسماعيل محمد محمد حرب | C17: 1 | D17: 1 | E17: كهرباء عام
A18: 17 | B18: عبد الرحمن حسين عفيفى محمد شريف | C18: 1 | D18: 1 | E18: كهرباء عام
A19: 18 | B19: عبد الرحمن سعيد محمد السيد | C19: 1 | D19: 1 | E19: كهرباء عام
A20: 19 | B20: عبد الرحمن صلاح الدين محمد محمد النبراوى | C20: 1 | D20: 1 | E20: كهرباء عام
A21: 20 | B21: عبد الرحمن محمد عبد الحميد محمد محمد بركات | C21: 1 | D21: 1 | E21: كهرباء عام
A22: 21 | B22: عبد الرحمن محمد فتحى عبد الحميد | C22: 1 | D22: 1 | E22: كهرباء عام
A23: 22 | B23: عمار ممدوح ابراهيم محمد طعيمه | C23: 1 | D23: 1 | E23: كهرباء عام
A24: 23 | B24: محمد السيد محمد احمد مصطفى | C24: 1 | D24: 1 | E24: كهرباء عام | J24: دمج
A25: 24 | B25: محمد عبد الحميد صابر محمد محمد | C25: 1 | D25: 1 | E25: كهرباء عام | J25: دمج
A26: 25 | B26: عمرو احمد محمد حبشى محمد بندارى جميل | C26: 2 | D26: 1 | E26: كهرباء عام
A27: 26 | B27: لؤى محمد محمود محمد السلاوى | C27: 2 | D27: 1 | E27: كهرباء عام
A28: 27 | B28: محروس سامح مغاورى احمد زين الدين | C28: 2 | D28: 1 | E28: كهرباء عام
A29: 28 | B29: محمد ابراهيم ابراهيم راشد | C29: 2 | D29: 1 | E29: كهرباء عام
A30: 29 | B30: محمد احمد حسين محمد عبد الحليم | C30: 2 | D30: 1 | E30: كهرباء عام | J30: باقى
A31: 30 | B31: محمد احمد صلاح محمد عمر | C31: 2 | D31: 1 | E31: كهرباء عام | J31: دمج
A32: 31 | B32: محمد بهى الدين محمد محمد عبد الله | C32: 2 | D32: 1 | E32: كهرباء عام
A33: 32 | B33: محمد سعيد بشندى قرنى محمد | C33: 2 | D33: 1 | E33: كهرباء عام
A34: 33 | B34: محمد شعبان عبد الرؤف احمد محمد السيد مصباح | C34: 2 | D34: 1 | E34: كهرباء عام
A35: 34 | B35: محمد صبحى عبد الفتاح محمد عبد الفتاح | C35: 2 | D35: 1 | E35: كهرباء عام
A36: 35 | B36: محمد عبد الحليم عبد الحليم حسن محمد الوو | C36: 2 | D36: 1 | E36: كهرباء عام
A37: 36 | B37: محمد عبد الحميد نصار حسن رزيق | C37: 2 | D37: 1 | E37: كهرباء عام
A38: 37 | B38: محمد عبد الله صابر محمد الحفناوى | C38: 2 | D38: 1 | E38: كهرباء عام
A39: 38 | B39: محمد عبد الله محمد محمد عيد | C39: 2 | D39: 1 | E39: كهرباء عام
A40: 39 | B40: محمد عماد عطوه احمد رمضان | C40: 2 | D40: 1 | E40: كهرباء عام
A41: 40 | B41: محمد قاسم عبد العظيم احمد الدرفيل | C41: 2 | D41: 1 | E41: كهرباء عام
A42: 41 | B42: محمد محمد الشحات محمد عباده | C42: 2 | D42: 1 | E42: كهرباء عام
A43: 42 | B43: محمد محمد مصطفى السيد السحت | C43: 2 | D43: 1 | E43: كهرباء عام
A44: 43 | B44: محمد محمود احمد جمعه محمد المهيطى | C44: 2 | D44: 1 | E44: كهرباء عام
A45: 44 | B45: محمد منصور محروس عثمان | C45: 2 | D45: 1 | E45: كهرباء عام
A46: 45 | B46: محمود مجدى محمد محمد | C46: 2 | D46: 1 | E46: كهرباء عام
A47: 46 | B47: محمود نور حمدى محمد محمد سلامه | C47: 2 | D47: 1 | E47: كهرباء عام
A48: 47 | B48: ياسين سامى السيد مطر | C48: 2 | D48: 1 | E48: كهرباء عام
A49: 48 | B49: يوسف السيد السيد محمد ابراهيم | C49: 2 | D49: 1 | E49: كهرباء عام
A50: 49 | B50: يوسف عبد الفتاح محمد عبد الفتاح عبد الرحمن | C50: 2 | D50: 1 | E50: كهرباء عام
A51: 50 | B51: احمد حسام فراج عبد العاطى محمود | C51: 3 | D51: 2 | E51: تبريد عام | J51: دمج
A52: 51 | B52: احمد حسن محمد عبد الحميد الشوربجى | C52: 3 | D52: 2 | E52: تبريد عام
A53: 52 | B53: احمد رمزى فوزى محمد فتحى | C53: 3 | D53: 2 | E53: تبريد عام | J53: دمج
A54: 53 | B54: احمد صبحى محمد مهدى الشلفه | C54: 3 | D54: 2 | E54: تبريد عام | J54: دمج
A55: 54 | B55: احمد صلاح عبد العزيز محمد | C55: 3 | D55: 2 | E55: تبريد عام | I55: JHFGGHJ
A56: 55 | B56: احمد طارق محمد السيد السيد شرف الدين | C56: 3 | D56: 2 | E56: تبريد عام
A57: 56 | B57: احمد طلعت السيد ابوزيد بركات | C57: 3 | D57: 2 | E57: تبريد عام
A58: 57 | B58: احمد عبد اللطيف محمد محمد عيد | C58: 3 | D58: 2 | E58: تبريد عام
A59: 58 | B59: احمد محمد احمد محروس شيحه | C59: 3 | D59: 2 | E59: تبريد عام
A60: 59 | B60: احمد محمد عبد الجواد الطاهر قموره | C60: 3 | D60: 2 | E60: تبريد عام | J60: دمج
A61: 60 | B61: احمد محمد عبد الرازق عبد الرحمن ادم | C61: 3 | D61: 2 | E61: تبريد عام
A62: 61 | B62: احمد مصطفى عبد الغنى محمد | C62: 3 | D62: 2 | E62: تبريد عام
A63: 62 | B63: اسلام فراج السيد السيد فراج | C63: 3 | D63: 2 | E63: تبريد عام
A64: 63 | B64: اسلام محمد السيد عبد العزيز | C64: 3 | D64: 2 | E64: تبريد عام
A65: 64 | B65: اسماعيل هانى اسماعيل خليل محمد | C65: 3 | D65: 2 | E65: تبريد عام
A66: 65 | B66: السيد رضا محمد محمد عاشور | C66: 3 | D66: 2 | E66: تبريد عام
A67: 66 | B67: امير محمد يوسف احمد الشلفه | C67: 3 | D67: 2 | E67: تبريد عام
A68: 67 | B68: امين على امين احمد سعد | C68: 3 | D68: 2 | E68: تبريد عام
A69: 68 | B69: جمال السيد موسى على بركات | C69: 3 | D69: 2 | E69: تبريد عام
A70: 69 | B70: خالد نشأت رمضان السيد الفار | C70: 3 | D70: 2 | E70: تبريد عام
A71: 70 | B71: سعيد السيد سعيد سعدونى عطيه | C71: 3 | D71: 2 | E71: تبريد عام
A72: 71 | B72: سمير عبد السلام عبد المنعم عبد السلام | C72: 3 | D72: 2 | E72: تبريد عام
A73: 72 | B73: شحاته محمد شحاته محمود صوابى | C73: 3 | D73: 2 | E73: تبريد عام
A74: 73 | B74: شريف احمد محمد رافت جمعه ابراهيم | C74: 3 | D74: 2 | E74: تبريد عام
A75: 74 | B75: شكرى محمود شكرى صابر محمد | C75: 3 | D75: 2 | E75: تبريد عام
A76: 75 | B76: طارق لطفى سمير عبد الحميد محمد | C76: 3 | D76: 2 | E76: تبريد عام
A77: 76 | B77: عادل محمد محمد على الجسمى | C77: 3 | D77: 2 | E77: تبريد عام
A78: 77 | B78: عبد الرحمن اشرف محمد زقزوق | C78: 4 | D78: 2 | E78: تبريد عام
A79: 78 | B79: عبد الرحمن ايمن فتحى عبد العزيز قاعود | C79: 4 | D79: 2 | E79: تبريد عام
A80: 79 | B80: عبد الرحمن صلاح محمد غندور مهدى | C80: 3 | D80: 2 | E80: تبريد عام
A81: 80 | B81: عبد الرحمن طارق صلاح الدين | C81: 4 | D81: 2 | E81: تبريد عام
A82: 81 | B82: عبد الرحمن محمد امين حسين عطيه نافع | C82: 3 | D82: 2 | E82: تبريد عام
A83: 82 | B83: عبد الرحمن محمد سيد على قنديل | C83: 3 | D83: 2 | E83: تبريد عام
A84: 83 | B84: عبد الرحمن محمود محمد اسماعيل دحيه | C84: 3 | D84: 2 | E84: تبريد عام
A85: 84 | B85: عبد الرحمن مصطفى صلاح مصطفى محمد زقزوق | C85: 3 | D85: 2 | E85: تبريد عام
A86: 85 | B86: عبد الغنى احمد عبد الغنى احمد السيسى | C86: 3 | D86: 2 | E86: تبريد عام
A87: 86 | B87: عبد اللطيف محمود عبد اللطيف محمود محمد | C87: 3 | D87: 2 | E87: تبريد عام
A88: 87 | B88: عبد الله احمد فتحى السيد ابراهيم | C88: 4 | D88: 2 | E88: تبريد عام
A89: 88 | B89: عصام عبد الله عبد النبى محمد رمضان | C89: 4 | D89: 2 | E89: تبريد عام
A90: 89 | B90: على نبيل محمد قطب على | C90: 4 | D90: 2 | E90: تبريد عام
A91: 90 | B91: على ياسر فؤاد فؤاد محمد | C91: 4 | D91: 2 | E91: تبريد عام
A92: 91 | B92: عمر خالد حلمى محمد صوابى | C92: 4 | D92: 2 | E92: تبريد عام
A93: 92 | B93: عمرو محمد عبد اللطيف ابراهيم حسن | C93: 4 | D93: 2 | E93: تبريد عام
A94: 93 | B94: عمرو مسعود عبد اللطيف ابراهيم محمد | C94: 4 | D94: 2 | E94: تبريد عام | J94: دمج
A95: 94 | B95: كريم زايد ابراهيم ابو النجا | C95: 4 | D95: 2 | E95: تبريد عام
A96: 95 | B96: كريم محمد محمد رضا حسن علوان | C96: 4 | D96: 2 | E96: تبريد عام
A97: 96 | B97: محمد احمد صابر عبد السميع | C97: 4 | D97: 2 | E97: تبريد عام
A98: 97 | B98: محمد احمد متولى عبد الوهاب محمد | C98: 4 | D98: 2 | E98: تبريد عام
A99: 98 | B99: محمد السيد حسن مطر | C99: 4 | D99: 2 | E99: تبريد عام
A100: 99 | B100: محمد السيد رمضان بشر | C100: 4 | D100: 2 | E100: تبريد عام
A101: 100 | B101: محمد السيد محمد حسين الغرباوى | C101: 4 | D101: 2 | E101: تبريد عام
A102: 101 | B102: محمد سامح محمد ابراهيم محمد السيد | C102: 4 | D102: 2 | E102: تبريد عام
A103: 102 | B103: محمد صلاح سيد محمد اسماعيل | C103: 4 | D103: 2 | E103: تبريد عام
A104: 103 | B104: محمد طلعت عزت عطوه حفنى | C104: 4 | D104: 2 | E104: تبريد عام
A105: 104 | B105: محمد محمود السيد مصطفى عليان | C105: 4 | D105: 2 | E105: تبريد عام
A106: 105 | B106: محمود السيد خليل محمد حسن | C106: 4 | D106: 2 | E106: تبريد عام
A107: 106 | B107: محمود ايمن محمد احمد ابراهيم | C107: 4 | D107: 2 | E107: تبريد عام
A108: 107 | B108: محمود تيمور احمد محمود | C108: 4 | D108: 2 | E108: تبريد عام
A109: 108 | B109: محمود رضا صابر غمرى | C109: 4 | D109: 2 | E109: تبريد عام
A110: 109 | B110: محمود عبد الهادى عيسى محمد | C110: 4 | D110: 2 | E110: تبريد عام
A111: 110 | B111: مصطفى احمد محمد فهمى | C111: 4 | D111: 2 | E111: تبريد عام | J111: دمج
A112: 111 | B112: مصطفى رمضان لطفى احمد السيد | C112: 4 | D112: 2 | E112: تبريد عام | J112: دمج
A113: 112 | B113: مصطفى محمد الشحات مصطفى محمود غنيم | C113: 4 | D113: 2 | E113: تبريد عام
A114: 113 | B114: معروف السيد ابراهيم اسماعيل | C114: 4 | D114: 2 | E114: تبريد عام
A115: 114 | B115: ناجى طلعت عبد الخالق ابراهيم | C115: 4 | D115: 2 | E115: تبريد عام
A116: 115 | B116: هانى سلامه حسن محمد السيد يونس | C116: 4 | D116: 2 | E116: تبريد عام | J116: دمج
A117: 116 | B117: يوسف احمد احمد اسماعيل | C117: 4 | D117: 2 | E117: تبريد عام
A118: 117 | B118: يوسف السيد محروس عبد الحليم الجندى | C118: 4 | D118: 2 | E118: تبريد عام | J118: دمج
A119: 118 | B119: يوسف شكرى ابراهيم عبد السلام يوسف | C119: 4 | D119: 2 | E119: تبريد عام
A120: 119 | B120: يوسف عمر عبد الحليم سليمان سليمان | C120: 4 | D120: 2 | E120: تبريد عام
A121: 120 | B121: يوسف مجدى على عطيه سرحان | C121: 4 | D121: 2 | E121: تبريد عام
A122: 121 | B122: ابراهيم احمد على كامل حسن خليل | C122: 5 | D122: 3 | E122: تشغيل
A123: 122 | B123: ابراهيم اسامه ابراهيم ابراهيم | C123: 5 | D123: 3 | E123: تشغيل
A124: 123 | B124: احمد ابراهيم عوض الله محمد ابو العزم | C124: 5 | D124: 3 | E124: تشغيل
A125: 124 | B125: احمد اسامه عبد العال موسى | C125: 5 | D125: 3 | E125: تشغيل
A126: 125 | B126: احمد السيد رزق عبد السلام | C126: 5 | D126: 3 | E126: تشغيل
A127: 126 | B127: احمد جمال محمد محمد طبايخ | C127: 5 | D127: 3 | E127: تشغيل
A128: 127 | B128: احمد سامح محمود السيد عبد العزيز | C128: 5 | D128: 3 | E128: تشغيل
A129: 128 | B129: احمد صلاح محمد توفيق منسى | C129: 5 | D129: 3 | E129: تشغيل
A130: 129 | B130: احمد طاهر محمود مصطفى الخضرجى | C130: 5 | D130: 3 | E130: تشغيل
A131: 130 | B131: احمد عادل رمضان احمد ابوطواله | C131: 5 | D131: 3 | E131: تشغيل
A132: 131 | B132: احمد عمرو عبد السلام محمد عبد السلام | C132: 5 | D132: 3 | E132: تشغيل
A133: 132 | B133: احمد محمد حسين على حسين | C133: 5 | D133: 3 | E133: تشغيل
A134: 133 | B134: احمد محمد رمضان حجازى ابراهيم حجازى | C134: 5 | D134: 3 | E134: تشغيل
A135: 134 | B135: احمد محمد سامى عبد الحكيم محمد النجار | C135: 5 | D135: 3 | E135: تشغيل
A136: 135 | B136: احمد محمد صبرى محمد النجار | C136: 5 | D136: 3 | E136: تشغيل
A137: 136 | B137: احمد محمد عبد العظيم محمد خليل | C137: 5 | D137: 3 | E137: تشغيل
A138: 137 | B138: احمد محمود على محمد منصور | C138: 5 | D138: 3 | E138: تشغيل
A139: 138 | B139: احمد نجيب عبد العزيز على حجاب | C139: 5 | D139: 3 | E139: تشغيل
A140: 139 | B140: احمد هليل على سالم هليل | C140: 5 | D140: 3 | E140: تشغيل
A141: 140 | B141: اسامه سعيد سيد احمد عطوه احمد | C141: 5 | D141: 3 | E141: تشغيل
A142: 141 | B142: اسلام جلال محمد عبد الهادى محمد الاعصر | C142: 5 | D142: 3 | E142: تشغيل
A143: 142 | B143: اسلام عيد محمد خضيرى | C143: 5 | D143: 3 | E143: تشغيل
A144: 143 | B144: اسلام مجدى عبد الحميد عبد العال الاشرم | C144: 5 | D144: 3 | E144: تشغيل
A145: 144 | B145: اسلام ناصر حلمى دسوقى عبدربه | C145: 5 | D145: 3 | E145: تشغيل
A146: 145 | B146: اكرم ايمن ابراهيم حسن ايوب | C146: 5 | D146: 3 | E146: تشغيل
A147: 146 | B147: السيد رضا صالح السيد راشد | C147: 5 | D147: 3 | E147: تشغيل
A148: 147 | B148: السيد على السيد خليل العطار | C148: 5 | D148: 3 | E148: تشغيل
A149: 148 | B149: السيد محمود السيد خليل سابق | C149: 5 | D149: 3 | E149: تشغيل
A150: 149 | B150: امين محمد فتحى محمد زامل | C150: 5 | D150: 3 | E150: تشغيل
A151: 150 | B151: ايمن ابراهيم سعيد فرحان عوض | C151: 5 | D151: 3 | E151: تشغيل
A152: 151 | B152: محمد ياسر محمد مصطفى مراد | C152: 5 | D152: 3 | E152: تشغيل
A153: 152 | B153: ايهاب محمد احمد الشحات محمد سراج | C153: 6 | D153: 3 | E153: تشغيل
A154: 153 | B154: جمال سعيد محمد على | C154: 6 | D154: 3 | E154: تشغيل
A155: 154 | B155: جمال عبد الرحمن محمد سلام عبد الرحمن | C155: 6 | D155: 3 | E155: تشغيل
A156: 155 | B156: جمال محمد حامد عبده عرابى | C156: 6 | D156: 3 | E156: تشغيل
A157: 156 | B157: حسنى ايمن سليمان عبد العاطى | C157: 6 | D157: 3 | E157: تشغيل
A158: 157 | B158: خالد عرفه محمد عرفات جعفر | C158: 6 | D158: 3 | E158: تشغيل
A159: 158 | B159: ذكريا سامى ادريس على محمد | C159: 6 | D159: 3 | E159: تشغيل
A160: 159 | B160: رشاد سعيد محمد على علام | C160: 6 | D160: 3 | E160: تشغيل
A161: 160 | B161: رمضان عبد الفتاح سعيد رمضان الشيخ | C161: 6 | D161: 3 | E161: تشغيل
A162: 161 | B162: زياد محمد ابراهيم محمد ضيف | C162: 6 | D162: 3 | E162: تشغيل
A163: 162 | B163: سعيد حسن حسن السيد فرج | C163: 6 | D163: 3 | E163: تشغيل
A164: 163 | B164: سعيد خالد محمد الدبركى خليل | C164: 6 | D164: 3 | E164: تشغيل
A165: 164 | B165: شعيب عبد الرازق احمد محمد ابو عيشه | C165: 6 | D165: 3 | E165: تشغيل
A166: 165 | B166: صابر رضا احمد الصغير بدوى عتمان | C166: 6 | D166: 3 | E166: تشغيل
A167: 166 | B167: صلاح على صلاح عبد العزيز محمد | C167: 6 | D167: 3 | E167: تشغيل
A168: 167 | B168: طارق علاء بيومى عبد الجليل | C168: 6 | D168: 3 | E168: تشغيل
A169: 168 | B169: طه على محمد عبد النبى محمد ابراهيم | C169: 6 | D169: 3 | E169: تشغيل
A170: 169 | B170: عادل عبد الله محمد عبد الله حسن | C170: 6 | D170: 3 | E170: تشغيل
A171: 170 | B171: عباس ايمن عباس مصطفى | C171: 6 | D171: 3 | E171: تشغيل
A172: 171 | B172: عبد الرحمن احمد محمد السيد عطيه النجار | C172: 6 | D172: 3 | E172: تشغيل
A173: 172 | B173: عبد الرحمن احمد محمد شاكر عبد الوهاب الخيال | C173: 6 | D173: 3 | E173: تشغيل
A174: 173 | B174: عبد الرحمن السيد فتحى محمد ابراهيم | C174: 6 | D174: 3 | E174: تشغيل
A175: 174 | B175: عبد الرحمن ايمن محمد راشد | C175: 6 | D175: 3 | E175: تشغيل
A176: 175 | B176: عبد الرحمن ايوب السيد ايوب محمد | C176: 6 | D176: 3 | E176: تشغيل
A177: 176 | B177: عبد الرحمن عمر مسلم احمد الكردى | C177: 6 | D177: 3 | E177: تشغيل
A178: 177 | B178: عبد الرحمن مجدى محمد عبد المحسن | C178: 6 | D178: 3 | E178: تشغيل
A179: 178 | B179: عبد الرحمن مجدى نبيل ابو عيسى السيد عزام | C179: 6 | D179: 3 | E179: تشغيل
A180: 179 | B180: عبد الرحمن محمود محمد بلاسى حرموش | C180: 6 | D180: 3 | E180: تشغيل
A181: 180 | B181: عبد القادر وائل عبد القادر عبد السلام | C181: 6 | D181: 3 | E181: تشغيل
A182: 181 | B182: عبد الله رضا اسماعيل نور محمد | C182: 6 | D182: 3 | E182: تشغيل
A183: 182 | B183: محمد احمد على عبد الغنى النبراوى | C183: 6 | D183: 3 | E183: تشغيل
A184: 183 | B184: اسامه احمد محمد صبرى محمود سليمان | C184: 7 | D184: 3 | E184: تشغيل
A185: 184 | B185: على السيد على عبد السلام جويلى | C185: 7 | D185: 3 | E185: تشغيل
A186: 185 | B186: على الصادق صلاح صادق حسن | C186: 7 | D186: 3 | E186: تشغيل
A187: 186 | B187: عمر حامد ابو بكر حامد حفنى | C187: 7 | D187: 3 | E187: تشغيل
A188: 187 | B188: عمر عبد النبى رجب جوده ابو العلا | C188: 7 | D188: 3 | E188: تشغيل
A189: 188 | B189: عمرو محمد ابراهيم محمد الجرودى | C189: 7 | D189: 3 | E189: تشغيل
A190: 189 | B190: عمرو ياسر محمد السيد شعبان | C190: 7 | D190: 3 | E190: تشغيل
A191: 190 | B191: فاروق محمد فاروق عبده السيد | C191: 7 | D191: 3 | E191: تشغيل
A192: 191 | B192: فريد محمد محمد النجار | C192: 7 | D192: 3 | E192: تشغيل
A193: 192 | B193: كريم ياسر محمد ابراهيم محمد سالم | C193: 7 | D193: 3 | E193: تشغيل
A194: 193 | B194: كمال عصام محمد فتحى البسى | C194: 7 | D194: 3 | E194: تشغيل
A195: 194 | B195: لؤى اسامه محمد الشحات | C195: 7 | D195: 3 | E195: تشغيل
A196: 195 | B196: محمد احمد عبد العزيز سويلم | C196: 7 | D196: 3 | E196: تشغيل
A197: 196 | B197: محمد احمد محمد الهادى احمد عفيفى | C197: 7 | D197: 3 | E197: تشغيل
A198: 197 | B198: محمد احمد محمد عبد الحليم ابو العنين | C198: 7 | D198: 3 | E198: تشغيل
A199: 198 | B199: محمد اشرف محمود عبد الحميد موسى | C199: 7 | D199: 3 | E199: تشغيل
A200: 199 | B200: محمد السيد عبيد على محمد | C200: 7 | D200: 3 | E200: تشغيل
... 488 more rows

Sheet List
A1: إدارة | E1: الفصل:
A2: مدرسة | C2: التخصص | D2: كهرباء عام | E2: 1
A3: م | B3: الاسم | C3: الحالة | D3: الديانة | E3: ملاحظات
A4: =IF(B4="","",MAX($A$3:A3)+1) -> 1 | B4: ابراهيم احمد محمد ابراهيم
A5: =IF(B5="","",MAX($A$3:A4)+1) -> 2 | B5: احمد عبد الفتاح على عبد الفتاح | C5: دمج
A6: =IF(B6="","",MAX($A$3:A5)+1) -> 3 | B6: احمد فتحى عبد المنعم السيد حسن
A7: =IF(B7="","",MAX($A$3:A6)+1) -> 4 | B7: احمد محمد عبد الحكيم حفنى زقزوق
A8: =IF(B8="","",MAX($A$3:A7)+1) -> 5 | B8: احمد وائل غريب احمد عبد العظيم درويش
A9: =IF(B9="","",MAX($A$3:A8)+1) -> 6 | B9: احمد يحيى مسعد الصادق محمد
A10: =IF(B10="","",MAX($A$3:A9)+1) -> 7 | B10: اسلام عبد العزيز كمال محمد مصطفى
A11: =IF(B11="","",MAX($A$3:A10)+1) -> 8 | B11: امجد شريف حافظ عبد المنعم السيسى
A12: =IF(B12="","",MAX($A$3:A11)+1) -> 9 | B12: ايمن بلال سعيد رشاد محمد
A13: =IF(B13="","",MAX($A$3:A12)+1) -> 10 | B13: أمير احمد حسين ابراهيم سليم
A14: =IF(B14="","",MAX($A$3:A13)+1) -> 11 | B14: رافت حسن على احمد حامد
A15: =IF(B15="","",MAX($A$3:A14)+1) -> 12 | B15: زياد محمد عبد اللطيف عبد الله
A16: =IF(B16="","",MAX($A$3:A15)+1) -> 13 | B16: سيف الدين عبد المنعم كامل على مصطفى عثمان
A17: =IF(B17="","",MAX($A$3:A16)+1) -> 14 | B17: سيف الدين محمد السيد محمد | C17: دمج
A18: =IF(B18="","",MAX($A$3:A17)+1) -> 15 | B18: عبد الرحمن ابراهيم محمد محمد صابر
A19: =IF(B19="","",MAX($A$3:A18)+1) -> 16 | B19: عبد الرحمن اسماعيل اسماعيل محمد محمد حرب
A20: =IF(B20="","",MAX($A$3:A19)+1) -> 17 | B20: عبد الرحمن حسين عفيفى محمد شريف
A21: =IF(B21="","",MAX($A$3:A20)+1) -> 18 | B21: عبد الرحمن سعيد محمد السيد
A22: =IF(B22="","",MAX($A$3:A21)+1) -> 19 | B22: عبد الرحمن صلاح الدين محمد محمد النبراوى
A23: =IF(B23="","",MAX($A$3:A22)+1) -> 20 | B23: عبد الرحمن محمد عبد الحميد محمد محمد بركات
A24: =IF(B24="","",MAX($A$3:A23)+1) -> 21 | B24: عبد الرحمن محمد فتحى عبد الحميد
A25: =IF(B25="","",MAX($A$3:A24)+1) -> 22 | B25: عمار ممدوح ابراهيم محمد طعيمه
A26: =IF(B26="","",MAX($A$3:A25)+1) -> 23 | B26: محمد السيد محمد احمد مصطفى | C26: دمج
A27: =IF(B27="","",MAX($A$3:A26)+1) -> 24 | B27: محمد عبد الحميد صابر محمد محمد | C27: دمج
A28: =IF(B28="","",MAX($A$3:A27)+1) -> 25 | B28: عمرو احمد محمد حبشى محمد بندارى جميل
A29: =IF(B29="","",MAX($A$3:A28)+1) -> 26 | B29: لؤى محمد محمود محمد السلاوى
A30: =IF(B30="","",MAX($A$3:A29)+1) -> 27 | B30: محروس سامح مغاورى احمد زين الدين
A31: =IF(B31="","",MAX($A$3:A30)+1) -> 28 | B31: محمد ابراهيم ابراهيم راشد
A32: =IF(B32="","",MAX($A$3:A31)+1) -> 29 | B32: محمد احمد حسين محمد عبد الحليم | C32: باقى
A33: =IF(B33="","",MAX($A$3:A32)+1) -> 30 | B33: محمد احمد صلاح محمد عمر | C33: دمج
A34: =IF(B34="","",MAX($A$3:A33)+1) -> 31 | B34: محمد بهى الدين محمد محمد عبد الله
A35: =IF(B35="","",MAX($A$3:A34)+1) -> 32 | B35: محمد سعيد بشندى قرنى محمد
A36: =IF(B36="","",MAX($A$3:A35)+1) -> 33 | B36: محمد شعبان عبد الرؤف احمد محمد السيد مصباح
A37: =IF(B37="","",MAX($A$3:A36)+1) -> 34 | B37: محمد صبحى عبد الفتاح محمد عبد الفتاح
A38: =IF(B38="","",MAX($A$3:A37)+1) -> 35 | B38: محمد عبد الحليم عبد الحليم حسن محمد الوو
A39: =IF(B39="","",MAX($A$3:A38)+1) -> 36 | B39: محمد عبد الحميد نصار حسن رزيق
A40: =IF(B40="","",MAX($A$3:A39)+1) -> 37 | B40: محمد عبد الله صابر محمد الحفناوى
A41: =IF(B41="","",MAX($A$3:A40)+1) -> 38 | B41: محمد عبد الله محمد محمد عيد
A42: =IF(B42="","",MAX($A$3:A41)+1) -> 39 | B42: محمد عماد عطوه احمد رمضان
A43: =IF(B43="","",MAX($A$3:A42)+1) -> 40 | B43: محمد قاسم عبد العظيم احمد الدرفيل
A44: =IF(B44="","",MAX($A$3:A43)+1) -> 41 | B44: محمد محمد الشحات محمد عباده
A45: =IF(B45="","",MAX($A$3:A44)+1) -> 42 | B45: محمد محمد مصطفى السيد السحت
A46: =IF(B46="","",MAX($A$3:A45)+1) -> 43 | B46: محمد محمود احمد جمعه محمد المهيطى
A47: =IF(B47="","",MAX($A$3:A46)+1) -> 44 | B47: محمد منصور محروس عثمان
A48: =IF(B48="","",MAX($A$3:A47)+1) -> 45 | B48: محمود مجدى محمد محمد
A49: =IF(B49="","",MAX($A$3:A48)+1) -> 46 | B49: محمود نور حمدى محمد محمد سلامه
A50: =IF(B50="","",MAX($A$3:A49)+1) -> 47 | B50: ياسين سامى السيد مطر
A51: =IF(B51="","",MAX($A$3:A50)+1) -> 48 | B51: يوسف السيد السيد محمد ابراهيم
A52: =IF(B52="","",MAX($A$3:A51)+1) -> 49 | B52: يوسف عبد الفتاح محمد عبد الفتاح عبد الرحمن
A53: =IF(B53="","",MAX($A$3:A52)+1) -> 50 | B53: احمد حسام فراج عبد العاطى محمود | C53: دمج
A54: =IF(B54="","",MAX($A$3:A53)+1) -> 51 | B54: احمد حسن محمد عبد الحميد الشوربجى
A55: =IF(B55="","",MAX($A$3:A54)+1) -> 52 | B55: احمد رمزى فوزى محمد فتحى | C55: دمج
A56: =IF(B56="","",MAX($A$3:A55)+1) -> 53 | B56: احمد صبحى محمد مهدى الشلفه | C56: دمج
A57: =IF(B57="","",MAX($A$3:A56)+1) -> 54 | B57: احمد صلاح عبد العزيز محمد
A58: =IF(B58="","",MAX($A$3:A57)+1) -> 55 | B58: احمد طارق محمد السيد السيد شرف الدين
A59: =IF(B59="","",MAX($A$3:A58)+1) -> 56 | B59: احمد طلعت السيد ابوزيد بركات
A60: =IF(B60="","",MAX($A$3:A59)+1) -> 57 | B60: احمد عبد اللطيف محمد محمد عيد
A61: =IF(B61="","",MAX($A$3:A60)+1) -> 58 | B61: احمد محمد احمد محروس شيحه
A62: =IF(B62="","",MAX($A$3:A61)+1) -> 59 | B62: احمد محمد عبد الجواد الطاهر قموره | C62: دمج
A63: =IF(B63="","",MAX($A$3:A62)+1) -> 60 | B63: احمد محمد عبد الرازق عبد الرحمن ادم
A64: =IF(B64="","",MAX($A$3:A63)+1) -> 61 | B64: احمد مصطفى عبد الغنى محمد
A65: =IF(B65="","",MAX($A$3:A64)+1) -> 62 | B65: اسلام فراج السيد السيد فراج
A66: =IF(B66="","",MAX($A$3:A65)+1) -> 63 | B66: اسلام محمد السيد عبد العزيز
A67: =IF(B67="","",MAX($A$3:A66)+1) -> 64 | B67: اسماعيل هانى اسماعيل خليل محمد
A68: =IF(B68="","",MAX($A$3:A67)+1) -> 65 | B68: السيد رضا محمد محمد عاشور
A69: =IF(B69="","",MAX($A$3:A68)+1) -> 66 | B69: امير محمد يوسف احمد الشلفه
A70: =IF(B70="","",MAX($A$3:A69)+1) -> 67 | B70: امين على امين احمد سعد
A71: =IF(B71="","",MAX($A$3:A70)+1) -> 68 | B71: جمال السيد موسى على بركات
A72: =IF(B72="","",MAX($A$3:A71)+1) -> 69 | B72: خالد نشأت رمضان السيد الفار
A73: =IF(B73="","",MAX($A$3:A72)+1) -> 70 | B73: سعيد السيد سعيد سعدونى عطيه
A74: =IF(B74="","",MAX($A$3:A73)+1) -> 71 | B74: سمير عبد السلام عبد المنعم عبد السلام
A75: =IF(B75="","",MAX($A$3:A74)+1) -> 72 | B75: شحاته محمد شحاته محمود صوابى
A76: =IF(B76="","",MAX($A$3:A75)+1) -> 73 | B76: شريف احمد محمد رافت جمعه ابراهيم
A77: =IF(B77="","",MAX($A$3:A76)+1) -> 74 | B77: شكرى محمود شكرى صابر محمد
A78: =IF(B78="","",MAX($A$3:A77)+1) -> 75 | B78: طارق لطفى سمير عبد الحميد محمد
A79: =IF(B79="","",MAX($A$3:A78)+1) -> 76 | B79: عادل محمد محمد على الجسمى
A80: =IF(B80="","",MAX($A$3:A79)+1) -> 77 | B80: عبد الرحمن اشرف محمد زقزوق
A81: =IF(B81="","",MAX($A$3:A80)+1) -> 78 | B81: عبد الرحمن ايمن فتحى عبد العزيز قاعود
A82: =IF(B82="","",MAX($A$3:A81)+1) -> 79 | B82: عبد الرحمن صلاح محمد غندور مهدى
A83: =IF(B83="","",MAX($A$3:A82)+1) -> 80 | B83: عبد الرحمن طارق صلاح الدين
A84: =IF(B84="","",MAX($A$3:A83)+1) -> 81 | B84: عبد الرحمن محمد امين حسين عطيه نافع
A85: =IF(B85="","",MAX($A$3:A84)+1) -> 82 | B85: عبد الرحمن محمد سيد على قنديل
A86: =IF(B86="","",MAX($A$3:A85)+1) -> 83 | B86: عبد الرحمن محمود محمد اسماعيل دحيه
A87: =IF(B87="","",MAX($A$3:A86)+1) -> 84 | B87: عبد الرحمن مصطفى صلاح مصطفى محمد زقزوق
A88: =IF(B88="","",MAX($A$3:A87)+1) -> 85 | B88: عبد الغنى احمد عبد الغنى احمد السيسى
A89: =IF(B89="","",MAX($A$3:A88)+1) -> 86 | B89: عبد اللطيف محمود عبد اللطيف محمود محمد
A90: =IF(B90="","",MAX($A$3:A89)+1) -> 87 | B90: عبد الله احمد فتحى السيد ابراهيم
A91: =IF(B91="","",MAX($A$3:A90)+1) -> 88 | B91: عصام عبد الله عبد النبى محمد رمضان
A92: =IF(B92="","",MAX($A$3:A91)+1) -> 89 | B92: على نبيل محمد قطب على
A93: =IF(B93="","",MAX($A$3:A92)+1) -> 90 | B93: على ياسر فؤاد فؤاد محمد
A94: =IF(B94="","",MAX($A$3:A93)+1) -> 91 | B94: عمر خالد حلمى محمد صوابى
A95: =IF(B95="","",MAX($A$3:A94)+1) -> 92 | B95: عمرو محمد عبد اللطيف ابراهيم حسن
A96: =IF(B96="","",MAX($A$3:A95)+1) -> 93 | B96: عمرو مسعود عبد اللطيف ابراهيم محمد | C96: دمج
A97: =IF(B97="","",MAX($A$3:A96)+1) -> 94 | B97: كريم زايد ابراهيم ابو النجا
A98: =IF(B98="","",MAX($A$3:A97)+1) -> 95 | B98: كريم محمد محمد رضا حسن علوان
A99: =IF(B99="","",MAX($A$3:A98)+1) -> 96 | B99: محمد احمد صابر عبد السميع
A100: =IF(B100="","",MAX($A$3:A99)+1) -> 97 | B100: محمد احمد متولى عبد الوهاب محمد
A101: =IF(B101="","",MAX($A$3:A100)+1) -> 98 | B101: محمد السيد حسن مطر
A102: =IF(B102="","",MAX($A$3:A101)+1) -> 99 | B102: محمد السيد رمضان بشر
A103: =IF(B103="","",MAX($A$3:A102)+1) -> 100 | B103: محمد السيد محمد حسين الغرباوى
A104: =IF(B104="","",MAX($A$3:A103)+1) -> 101 | B104: محمد سامح محمد ابراهيم محمد السيد
A105: =IF(B105="","",MAX($A$3:A104)+1) -> 102 | B105: محمد صلاح سيد محمد اسماعيل
A106: =IF(B106="","",MAX($A$3:A105)+1) -> 103 | B106: محمد طلعت عزت عطوه حفنى
A107: =IF(B107="","",MAX($A$3:A106)+1) -> 104 | B107: محمد محمود السيد مصطفى عليان
A108: =IF(B108="","",MAX($A$3:A107)+1) -> 105 | B108: محمود السيد خليل محمد حسن
A109: =IF(B109="","",MAX($A$3:A108)+1) -> 106 | B109: محمود ايمن محمد احمد ابراهيم
A110: =IF(B110="","",MAX($A$3:A109)+1) -> 107 | B110: محمود تيمور احمد محمود
A111: =IF(B111="","",MAX($A$3:A110)+1) -> 108 | B111: محمود رضا صابر غمرى
A112: =IF(B112="","",MAX($A$3:A111)+1) -> 109 | B112: محمود عبد الهادى عيسى محمد
A113: =IF(B113="","",MAX($A$3:A112)+1) -> 110 | B113: مصطفى احمد محمد فهمى | C113: دمج
A114: =IF(B114="","",MAX($A$3:A113)+1) -> 111 | B114: مصطفى رمضان لطفى احمد السيد | C114: دمج
A115: =IF(B115="","",MAX($A$3:A114)+1) -> 112 | B115: مصطفى محمد الشحات مصطفى محمود غنيم
A116: =IF(B116="","",MAX($A$3:A115)+1) -> 113 | B116: معروف السيد ابراهيم اسماعيل
A117: =IF(B117="","",MAX($A$3:A116)+1) -> 114 | B117: ناجى طلعت عبد الخالق ابراهيم
A118: =IF(B118="","",MAX($A$3:A117)+1) -> 115 | B118: هانى سلامه حسن محمد السيد يونس | C118: دمج
A119: =IF(B119="","",MAX($A$3:A118)+1) -> 116 | B119: يوسف احمد احمد اسماعيل
A120: =IF(B120="","",MAX($A$3:A119)+1) -> 117 | B120: يوسف السيد محروس عبد الحليم الجندى | C120: دمج
A121: =IF(B121="","",MAX($A$3:A120)+1) -> 118 | B121: يوسف شكرى ابراهيم عبد السلام يوسف
A122: =IF(B122="","",MAX($A$3:A121)+1) -> 119 | B122: يوسف عمر عبد الحليم سليمان سليمان
A123: =IF(B123="","",MAX($A$3:A122)+1) -> 120 | B123: يوسف مجدى على عطيه سرحان
A124: =IF(B124="","",MAX($A$3:A123)+1) -> 121 | B124: ابراهيم احمد على كامل حسن خليل
A125: =IF(B125="","",MAX($A$3:A124)+1) -> 122 | B125: ابراهيم اسامه ابراهيم ابراهيم
A126: =IF(B126="","",MAX($A$3:A125)+1) -> 123 | B126: احمد ابراهيم عوض الله محمد ابو العزم
A127: =IF(B127="","",MAX($A$3:A126)+1) -> 124 | B127: احمد اسامه عبد العال موسى
A128: =IF(B128="","",MAX($A$3:A127)+1) -> 125 | B128: احمد السيد رزق عبد السلام
A129: =IF(B129="","",MAX($A$3:A128)+1) -> 126 | B129: احمد جمال محمد محمد طبايخ
A130: =IF(B130="","",MAX($A$3:A129)+1) -> 127 | B130: احمد سامح محمود السيد عبد العزيز
A131: =IF(B131="","",MAX($A$3:A130)+1) -> 128 | B131: احمد صلاح محمد توفيق منسى
A132: =IF(B132="","",MAX($A$3:A131)+1) -> 129 | B132: احمد طاهر محمود مصطفى الخضرجى
A133: =IF(B133="","",MAX($A$3:A132)+1) -> 130 | B133: احمد عادل رمضان احمد ابوطواله
A134: =IF(B134="","",MAX($A$3:A133)+1) -> 131 | B134: احمد عمرو عبد السلام محمد عبد السلام
A135: =IF(B135="","",MAX($A$3:A134)+1) -> 132 | B135: احمد محمد حسين على حسين
A136: =IF(B136="","",MAX($A$3:A135)+1) -> 133 | B136: احمد محمد رمضان حجازى ابراهيم حجازى
A137: =IF(B137="","",MAX($A$3:A136)+1) -> 134 | B137: احمد محمد سامى عبد الحكيم محمد النجار
A138: =IF(B138="","",MAX($A$3:A137)+1) -> 135 | B138: احمد محمد صبرى محمد النجار
A139: =IF(B139="","",MAX($A$3:A138)+1) -> 136 | B139: احمد محمد عبد العظيم محمد خليل
A140: =IF(B140="","",MAX($A$3:A139)+1) -> 137 | B140: احمد محمود على محمد منصور
A141: =IF(B141="","",MAX($A$3:A140)+1) -> 138 | B141: احمد نجيب عبد العزيز على حجاب
A142: =IF(B142="","",MAX($A$3:A141)+1) -> 139 | B142: احمد هليل على سالم هليل
A143: =IF(B143="","",MAX($A$3:A142)+1) -> 140 | B143: اسامه سعيد سيد احمد عطوه احمد
A144: =IF(B144="","",MAX($A$3:A143)+1) -> 141 | B144: اسلام جلال محمد عبد الهادى محمد الاعصر
A145: =IF(B145="","",MAX($A$3:A144)+1) -> 142 | B145: اسلام عيد محمد خضيرى
A146: =IF(B146="","",MAX($A$3:A145)+1) -> 143 | B146: اسلام مجدى عبد الحميد عبد العال الاشرم
A147: =IF(B147="","",MAX($A$3:A146)+1) -> 144 | B147: اسلام ناصر حلمى دسوقى عبدربه
A148: =IF(B148="","",MAX($A$3:A147)+1) -> 145 | B148: اكرم ايمن ابراهيم حسن ايوب
A149: =IF(B149="","",MAX($A$3:A148)+1) -> 146 | B149: السيد رضا صالح السيد راشد
A150: =IF(B150="","",MAX($A$3:A149)+1) -> 147 | B150: السيد على السيد خليل العطار
A151: =IF(B151="","",MAX($A$3:A150)+1) -> 148 | B151: السيد محمود السيد خليل سابق
A152: =IF(B152="","",MAX($A$3:A151)+1) -> 149 | B152: امين محمد فتحى محمد زامل
A153: =IF(B153="","",MAX($A$3:A152)+1) -> 150 | B153: ايمن ابراهيم سعيد فرحان عوض
A154: =IF(B154="","",MAX($A$3:A153)+1) -> 151 | B154: محمد ياسر محمد مصطفى مراد
A155: =IF(B155="","",MAX($A$3:A154)+1) -> 152 | B155: ايهاب محمد احمد الشحات محمد سراج
A156: =IF(B156="","",MAX($A$3:A155)+1) -> 153 | B156: جمال سعيد محمد على
A157: =IF(B157="","",MAX($A$3:A156)+1) -> 154 | B157: جمال عبد الرحمن محمد سلام عبد الرحمن
A158: =IF(B158="","",MAX($A$3:A157)+1) -> 155 | B158: جمال محمد حامد عبده عرابى
A159: =IF(B159="","",MAX($A$3:A158)+1) -> 156 | B159: حسنى ايمن سليمان عبد العاطى
A160: =IF(B160="","",MAX($A$3:A159)+1) -> 157 | B160: خالد عرفه محمد عرفات جعفر
A161: =IF(B161="","",MAX($A$3:A160)+1) -> 158 | B161: ذكريا سامى ادريس على محمد
A162: =IF(B162="","",MAX($A$3:A161)+1) -> 159 | B162: رشاد سعيد محمد على علام
A163: =IF(B163="","",MAX($A$3:A162)+1) -> 160 | B163: رمضان عبد الفتاح سعيد رمضان الشيخ
A164: =IF(B164="","",MAX($A$3:A163)+1) -> 161 | B164: زياد محمد ابراهيم محمد ضيف
A165: =IF(B165="","",MAX($A$3:A164)+1) -> 162 | B165: سعيد حسن حسن السيد فرج
A166: =IF(B166="","",MAX($A$3:A165)+1) -> 163 | B166: سعيد خالد محمد الدبركى خليل
A167: =IF(B167="","",MAX($A$3:A166)+1) -> 164 | B167: شعيب عبد الرازق احمد محمد ابو عيشه
A168: =IF(B168="","",MAX($A$3:A167)+1) -> 165 | B168: صابر رضا احمد الصغير بدوى عتمان
A169: =IF(B169="","",MAX($A$3:A168)+1) -> 166 | B169: صلاح على صلاح عبد العزيز محمد
A170: =IF(B170="","",MAX($A$3:A169)+1) -> 167 | B170: طارق علاء بيومى عبد الجليل
A171: =IF(B171="","",MAX($A$3:A170)+1) -> 168 | B171: طه على محمد عبد النبى محمد ابراهيم
A172: =IF(B172="","",MAX($A$3:A171)+1) -> 169 | B172: عادل عبد الله محمد عبد الله حسن
A173: =IF(B173="","",MAX($A$3:A172)+1) -> 170 | B173: عباس ايمن عباس مصطفى
A174: =IF(B174="","",MAX($A$3:A173)+1) -> 171 | B174: عبد الرحمن احمد محمد السيد عطيه النجار
A175: =IF(B175="","",MAX($A$3:A174)+1) -> 172 | B175: عبد الرحمن احمد محمد شاكر عبد الوهاب الخيال
A176: =IF(B176="","",MAX($A$3:A175)+1) -> 173 | B176: عبد الرحمن السيد فتحى محمد ابراهيم
A177: =IF(B177="","",MAX($A$3:A176)+1) -> 174 | B177: عبد الرحمن ايمن محمد راشد
A178: =IF(B178="","",MAX($A$3:A177)+1) -> 175 | B178: عبد الرحمن ايوب السيد ايوب محمد
A179: =IF(B179="","",MAX($A$3:A178)+1) -> 176 | B179: عبد الرحمن عمر مسلم احمد الكردى
A180: =IF(B180="","",MAX($A$3:A179)+1) -> 177 | B180: عبد الرحمن مجدى محمد عبد المحسن
A181: =IF(B181="","",MAX($A$3:A180)+1) -> 178 | B181: عبد الرحمن مجدى نبيل ابو عيسى السيد عزام
A182: =IF(B182="","",MAX($A$3:A181)+1) -> 179 | B182: عبد الرحمن محمود محمد بلاسى حرموش
A183: =IF(B183="","",MAX($A$3:A182)+1) -> 180 | B183: عبد القادر وائل عبد القادر عبد السلام
A184: =IF(B184="","",MAX($A$3:A183)+1) -> 181 | B184: عبد الله رضا اسماعيل نور محمد
A185: =IF(B185="","",MAX($A$3:A184)+1) -> 182 | B185: محمد احمد على عبد الغنى النبراوى
A186: =IF(B186="","",MAX($A$3:A185)+1) -> 183 | B186: اسامه احمد محمد صبرى محمود سليمان
A187: =IF(B187="","",MAX($A$3:A186)+1) -> 184 | B187: على السيد على عبد السلام جويلى
A188: =IF(B188="","",MAX($A$3:A187)+1) -> 185 | B188: على الصادق صلاح صادق حسن
A189: =IF(B189="","",MAX($A$3:A188)+1) -> 186 | B189: عمر حامد ابو بكر حامد حفنى
A190: =IF(B190="","",MAX($A$3:A189)+1) -> 187 | B190: عمر عبد النبى رجب جوده ابو العلا
A191: =IF(B191="","",MAX($A$3:A190)+1) -> 188 | B191: عمرو محمد ابراهيم محمد الجرودى
A192: =IF(B192="","",MAX($A$3:A191)+1) -> 189 | B192: عمرو ياسر محمد السيد شعبان
A193: =IF(B193="","",MAX($A$3:A192)+1) -> 190 | B193: فاروق محمد فاروق عبده السيد
A194: =IF(B194="","",MAX($A$3:A193)+1) -> 191 | B194: فريد محمد محمد النجار
A195: =IF(B195="","",MAX($A$3:A194)+1) -> 192 | B195: كريم ياسر محمد ابراهيم محمد سالم
A196: =IF(B196="","",MAX($A$3:A195)+1) -> 193 | B196: كمال عصام محمد فتحى البسى
A197: =IF(B197="","",MAX($A$3:A196)+1) -> 194 | B197: لؤى اسامه محمد الشحات
A198: =IF(B198="","",MAX($A$3:A197)+1) -> 195 | B198: محمد احمد عبد العزيز سويلم
A199: =IF(B199="","",MAX($A$3:A198)+1) -> 196 | B199: محمد احمد محمد الهادى احمد عفيفى
A200: =IF(B200="","",MAX($A$3:A199)+1) -> 197 | B200: محمد احمد محمد عبد الحليم ابو العنين
... 721 more rows
